Cogmind - Beta 13 @@@ ROGUE MODE // 2024.05.23 @ 10:29:26 Player: GFYguy Result: Self-destructed Performance ------------- Evolutions (2) 1000 Regions Visited (4) 800 Robots Destroyed (5) 25 Value Destroyed (82) 82 Prototype IDs (0) 0 Alien Tech Used (0) 0 Bonus (0) 0 TOTAL SCORE: 1907 Bonus ------- None Cogmind --------- Core Integrity 519/550 Matter 256/300 Energy 140/140 System Corruption 0% Temperature Cool (27) Movement Treading (160) Location -8/Materials Parts ------- > --- POWER (1) -------- Light Deuterium Engine > --- PROPULSION (5) --- Medium Treads Medium Treads Flight Unit Flight Unit > --- UTILITY (3) ------ Medium Storage Unit Structural Scanner Light Armor Plating > --- WEAPON (2) ------- High-powered Shotgun Improved Datajack > --- INVENTORY (10) --- Light Nuclear Core Flight Unit Flight Unit Cesium-ion Thruster Small Storage Unit Compact Matter Pod (83) Light Assault Rifle Light Assault Rifle High-powered Shotgun Peak State ------------ > --- POWER ------------ Light Deuterium Engine > --- PROPULSION ------- Medium Treads Medium Treads Medium Treads Flight Unit Flight Unit > --- UTILITY ---------- Medium Storage Unit Structural Scanner Light Armor Plating > --- WEAPON ----------- High-powered Shotgun Improved Datajack > --- INVENTORY -------- Light Nuclear Core Flight Unit Flight Unit Cesium-ion Thruster Small Storage Unit Compact Matter Pod Light Assault Rifle Light Assault Rifle High-powered Shotgun [Rating: 27] Favorites ----------- Power Light Ion Engine Engine Light Ion Engine Propulsion Wheel Treads Medium Treads Wheel Wheel Flight Unit Flight Unit Utility Medium Storage Unit Device Structural Scanner Storage Medium Storage Unit Protection Light Armor Plating Weapon Light Assault Rifle Ballistic Gun Light Assault Rifle Special Melee Weapon Improved Datajack Build | -11 -10 -10 -10 -8 ------- Run | Yrd Mat Min Sub Mat Slots Evolved 4 | . . . . 4 Power . | . . . . . Propulsion 3 | . . . . 3 Utility 1 | . . . . 1 Weapon . | . . . . . Parts Attached 34 | 6 2 9 3 14 Power 4 | 1 . . 2 1 Engine 4 | 1 . . 2 1 Core . | . . . . . Reactor . | . . . . . Propulsion 18 | 2 . 7 1 8 Treads 3 | . . . . 3 Leg . | . . . . . Wheel 7 | 2 . 4 1 . Hover . | . . . . . Flight 8 | . . 3 . 5 Utility 5 | 1 2 . . 2 Device 1 | . 1 . . . Storage 3 | 1 1 . . 1 Processor . | . . . . . Hackware . | . . . . . Protection 1 | . . . . 1 Artifact . | . . . . . Weapon 7 | 2 . 2 . 3 Energy Gun . | . . . . . Energy Cannon . | . . . . . Ballistic Gun 6 | 2 . 2 . 2 Ballistic Cannon . | . . . . . Launcher . | . . . . . Special Weapon . | . . . . . Impact Weapon . | . . . . . Slashing Weapon . | . . . . . Piercing Weapon . | . . . . . Special Melee Weapon 1 | . . . . 1 Unidentified Prototypes . | . . . . . Parts Lost 1 | . . 1 . . Power . | . . . . . Propulsion 1 | . . 1 . . Utility . | . . . . . Weapon . | . . . . . Highest Loss Streak 1 | . . 1 . . To Critical Strikes . | . . . . . Average Slot Usage (%) 95 | . 86 98 100 95 Engine 13 | . 14 14 14 9 Wheel 19 | . 28 18 22 2 Flight 8 | . . 7 6 36 Device 10 | . 1 14 14 9 Storage 13 | . 14 14 14 13 Ballistic Gun 26 | . 28 28 28 12 Naked Turns . | . . . . . Heaviest Build 23 | 10 16 16 18 23 Greatest Support 84 | 20 20 20 30 84 Greatest Overweight (x) 5 | . . 5 1 1 Average Overweight (x) . | . . . . . Largest Inventory Capacity 10 | 8 10 10 10 10 Average Capacity 9 | 5 8 10 10 10 Most Carried 10 | 4 10 10 10 10 Average Carried 7 | 1 4 9 9 7 Final Capacity 10 | 8 10 10 10 10 Final Carried 10 | 1 9 10 10 9 Class Distribution -------------------- 94% | Mutant 5% | Scavenger-Sprinter Dominant Class ---------------- Mutant | -10/Materials Mutant | -10/Mines Mutant | -10/Subcaves Scavenger-Sprinter | -8/Materials Resources | -11 -10 -10 -10 -8 ----------- Run | Yrd Mat Min Sub Mat Matter Collected 635 | 270 40 187 37 101 Remotely . | . . . . . Salvage Created 115 | 19 46 50 . . Parts 13 | 3 6 4 . . Haulers Intercepted . | . . . . . Recyclers Shooed . | . . . . . Parts Field Recycled . | . . . . . Retrieved Matter . | . . . . . Parts Self-Destructed 10 | . . . 10 . Prevented . | . . . . . Kills | -11 -10 -10 -10 -8 ------- Run | Yrd Mat Min Sub Mat Combat Hostiles Destroyed 4 | . 3 1 . . Guns 4 | . 3 1 . . Classes Destroyed 3 | 1 1 1 . . Tunneler 1 | 1 . . . . Swarmer 3 | . 3 . . . Sentry 1 | . . 1 . . Best Kill Streak 3 | 1 3 1 . . Combat Bots Only 3 | . 3 1 . . Max Kills in Single Turn 1 | 1 1 1 . . Gunslinging . | . . . . . Exploded . | . . . . . Melee . | . . . . . Uniques/NPCs Destroyed . | . . . . . Combat | -11 -10 -10 -10 -8 -------- Run | Yrd Mat Min Sub Mat Hostile Shots Fired 56 | . 19 26 3 8 Missed 16 | . 6 7 2 1 Damage Taken 482 | . 116 189 58 119 Core 150 | . 40 79 . 31 Absorbed by Shields . | . . . . . Core Remaining (%) 76 | 100 . . 52 . Volleys Fired 30 | 5 15 8 . 2 Largest 2 | 2 2 2 . 1 Hottest 40 | 40 40 40 . 25 Shots Fired 58 | 10 30 16 . 2 Gun 58 | 10 30 16 . 2 Cannon . | . . . . . Launcher . | . . . . . Special . | . . . . . Kinetic 58 | 10 30 16 . 2 Thermal . | . . . . . Explosive . | . . . . . Electromagnetic . | . . . . . Robot Hit Streak 6 | 4 6 4 . 2 Robot Miss Streak 5 | 3 5 2 . 1 Penetration Max . | . . . . . Secondary Targets . | . . . . . Shots Hit Robots 36 | 5 13 9 . 9 Core Hits 13 | 2 7 4 . . Critical Kills . | . . . . . Critical Parts Destroyed 1 | . . 1 . . Critical Strikes 1 | . . 1 . . Destroy 1 | . . 1 . . Melee Attacks 7 | . . . . 7 Impact . | . . . . . Slashing . | . . . . . Piercing . | . . . . . Sneak Attacks 4 | . . . . 4 Combat Hostiles . | . . . . . Follow-up Attacks . | . . . . . Damage Inflicted 242 | 38 100 72 . 32 Guns 242 | 38 100 72 . 32 Cannons . | . . . . . Explosions . | . . . . . Melee . | . . . . . Ramming . | . . . . . Kinetic 242 | 38 100 72 . 32 Thermal . | . . . . . Explosive . | . . . . . Electromagnetic . | . . . . . Impact . | . . . . . Slashing . | . . . . . Piercing . | . . . . . Highest Corruption . | . . . . . Average Corruption . | . . . . . Corruption Purged . | . . . . . Corruption Blocked . | . . . . . Overload Shots . | . . . . . Overflow Damage . | . . . . . Projectiles . | . . . . . Explosions . | . . . . . Melee . | . . . . . Knockbacks . | . . . . . Impact . | . . . . . Kinetic . | . . . . . Secondary . | . . . . . Self-Inflicted Damage . | . . . . . Shots . | . . . . . Rammed . | . . . . . Targets Rammed . | . . . . . Kicked . | . . . . . Crushed . | . . . . . Highest Temperature 18 | . . 18 . . Average Temperature 10 | . . 10 . . Received Heat Transfer 117 | . 9 36 . 72 Siege Activations . | . . . . . Robots Corrupted . | . . . . . Combat Hostiles . | . . . . . Parts Fried . | . . . . . Impact Corruptions . | . . . . . Robots Melted . | . . . . . Combat Hostiles . | . . . . . Parts Melted . | . . . . . Heat Transferred . | . . . . . Parts Sabotaged . | . . . . . Parts Stolen . | . . . . . Parts Stripped . | . . . . . Power Chain Reactions . | . . . . . Alert | -11 -10 -10 -10 -8 ------- Run | Yrd Mat Min Sub Mat Peak Influence 118 | 5 118 80 . 46 Initial 45 | . 3 45 . 16 Average 51 | 2 49 64 . 30 Maximum Alert Level . | . . . . . Low Security (%) 100 | 100 100 100 . 100 Level 1 . | . . . . . Level 2 . | . . . . . Level 3 . | . . . . . Level 4 . | . . . . . Level 5 . | . . . . . High Security . | . . . . . Max Security . | . . . . . Squads Dispatched 1 | . 1 . . . Investigation . | . . . . . Extermination . | . . . . . Reinforcement 1 | . 1 . . . Assault . | . . . . . Garrison . | . . . . . Intercept . | . . . . . Searches Triggered . | . . . . . Construction Impeded . | . . . . . Haulers Reinforced . | . . . . . Active Scanning Responses . | . . . . . Cargo Convoy Interrupts . | . . . . . Stealth | -11 -10 -10 -10 -8 --------- Run | Yrd Mat Min Sub Mat Distress Signals 3 | . 1 . . 2 Communications Jammed . | . . . . . Distress Signals . | . . . . . Times Spotted 21 | . 9 2 1 9 Peak Tracking Total 9 | . 3 3 2 9 Tactical Retreats . | . . . . . Traps | -11 -10 -10 -10 -8 ------- Run | Yrd Mat Min Sub Mat Traps Triggered 2 | . . 1 1 . Indirectly . | . . . . . Trap Hack Attempts . | . . . . . Triggered . | . . . . . Disarmed . | . . . . . Reprogrammed . | . . . . . Reused . | . . . . . Traps Extracted . | . . . . . Installed . | . . . . . Triggered . | . . . . . Machines | -11 -10 -10 -10 -8 ---------- Run | Yrd Mat Min Sub Mat Machines Disabled . | . . . . . Max in Single Turn . | . . . . . Machines Repaired . | . . . . . Machines Dismantled . | . . . . . Machines Sabotaged . | . . . . . Overloaded Fab Kills . | . . . . . Hacking | -11 -10 -10 -10 -8 --------- Run | Yrd Mat Min Sub Mat Machines Accessed 1 | . . 1 . . Terminals . | . . . . . Fabricators . | . . . . . Repair Stations . | . . . . . Recycling Units . | . . . . . Scanalyzers . | . . . . . Garrison Access . | . . . . . Total Hacks 1 | . . 1 . . Successful 1 | . . 1 . . Failed . | . . . . . Catastrophic . | . . . . . Database Lockouts . | . . . . . Manual . | . . . . . Terminals . | . . . . . Fabricators . | . . . . . Repair Stations . | . . . . . Recycling Units . | . . . . . Scanalyzers . | . . . . . Garrison Access . | . . . . . Terminal Hacks 1 | . . 1 . . Open Door 1 | . . 1 . . Fabricator Hacks . | . . . . . Repair Station Hacks . | . . . . . Recycling Unit Hacks . | . . . . . Scanalyzer . | . . . . . Garrison Access Hacks . | . . . . . Unauthorized Hacks . | . . . . . Terminals . | . . . . . Fabricators . | . . . . . Repair Stations . | . . . . . Recycling Units . | . . . . . Scanalyzers . | . . . . . Garrison Access . | . . . . . Data Cores Recovered . | . . . . . Used . | . . . . . Hacking Detections . | . . . . . Full Trace Events . | . . . . . Feedback Events . | . . . . . Feedback Blocked . | . . . . . Robot Schematics Acquired . | . . . . . Robots Built . | . . . . . Authchips . | . . . . . Time . | . . . . . Total Robot Build Rating . | . . . . . Part Schematics Acquired . | . . . . . Parts Built . | . . . . . Authchips . | . . . . . Time . | . . . . . Total Part Build Rating . | . . . . . Parts Repaired . | . . . . . Time . | . . . . . Parts Recycled . | . . . . . Recycled Matter . | . . . . . Retrieved Matter . | . . . . . Retrieved Components . | . . . . . Parts Scanalyzed . | . . . . . Part Schematics Acquired . | . . . . . Parts Damaged . | . . . . . Bothacking | -11 -10 -10 -10 -8 ------------ Run | Yrd Mat Min Sub Mat Used RIF Installer . | . . . . . Robots Hacked 3 | . . . . 3 Non-combat 3 | . . . . 3 Combat . | . . . . . Robot Hacks Applied 3 | . . . . 3 parse_system 1 | . . . . 1 no_distress 2 | . . . . 2 Relay Couplers Released . | . . . . . Fabnet Peak Effective % . | . . . . . Robots Rewired . | . . . . . Allies Hacked . | . . . . . Hacks Repelled . | . . . . . Allies | -11 -10 -10 -10 -8 -------- Run | Yrd Mat Min Sub Mat Total Allies . | . . . . . Largest Group . | . . . . . Highest-Rated Group . | . . . . . Highest-Rated Ally . | . . . . . Total Orders . | . . . . . Ally Attacks . | . . . . . Total Damage . | . . . . . Kills . | . . . . . Allies Corrupted . | . . . . . Allies Melted . | . . . . . Intel | -11 -10 -10 -10 -8 ------- Run | Yrd Mat Min Sub Mat Robot Analysis Total . | . . . . . Derelict Logs Recovered . | . . . . . Drone Launches . | . . . . . Drone Recoveries . | . . . . . Exploration | -11 -10 -10 -10 -8 ------------- Run | Yrd Mat Min Sub Mat Turns Passed 852 | 65 183 389 141 74 Spaces Moved 620 | 57 143 190 142 88 Core 29 | 28 . 1 . . Treads 3 | . . . . 3 Legs . | . . . . . Wheels 503 | 29 143 189 142 . Hover . | . . . . . Flight 85 | . . . . 85 Fastest Speed 27 | 50 80 80 95 27 Average Speed 77 | 65 80 86 95 32 Slowest Speed 300 | 80 80 300 95 160 Overloaded Moves . | . . . . . Propulsion Burnouts . | . . . . . Robots Hopped . | . . . . . Cave-ins Triggered . | . . . . . Exploration Rate (%) 15 | 4 26 30 7 12 Regions Visited 4 Branch Regions 2 Pre-discovered Areas . | . . . . . Known Exits Taken . | . . . . . Unknown Exits Taken 4 | 1 1 1 1 . Scrap Searched 1 | . . 1 . . Spaces Dug . | . . . . . Terrain Destroyed . | . . . . . Melee . | . . . . . Projectile . | . . . . . AOE . | . . . . . Terrain Rammed . | . . . . . Walls Destroyed . | . . . . . Machines Disabled . | . . . . . Actions | -11 -10 -10 -10 -8 --------- Run | Yrd Mat Min Sub Mat Total 938 | 76 186 400 146 130 Wait 211 | 2 18 183 . 8 Move 616 | 56 142 189 141 88 Hop . | . . . . . Pick Up 30 | 7 9 7 1 6 Fast Attach 1 | . . 1 . . Attach 15 | 6 1 2 . 6 Detach 2 | . . . . 2 Swap 18 | . 1 6 3 8 Drop 8 | . . 4 1 3 Fire 30 | 5 15 8 . 2 Melee 7 | . . . . 7 Ram . | . . . . . Kick . | . . . . . Crush . | . . . . . Escape Stasis . | . . . . . Rewire . | . . . . . Trap . | . . . . . Miscellaneous . | . . . . . Route ------- -11/Scrapyard -10/Materials -10/Mines -10/Subcaves -8/Materials History --------- Turn | Location | Event 6 | -11/Scrapyard | Discovered new exit (range 15) 66 | -11/Scrapyard | Entered Materials 232 | -10/Materials | Discovered new exit (range 12) 249 | -10/Materials | Entered Mines 255 | -10/Mines | Met a Derelict who couldn't figure out how to use a Trap Extractor 308 | -10/Mines | Build established: Mutant 338 | -10/Mines | Joined a pair of Derelicts in attacking an 0b10 outpost 443 | -10/Mines | Discovered new exit (range 14) 638 | -10/Mines | Entered Subcaves 678 | -10/Subcaves | Shifting Twisted Machinery released Spk. Treads 684 | -10/Subcaves | Discovered new exit (range 16) 685 | -10/Subcaves | Shifting Twisted Machinery released Sub. Monowheel 779 | -10/Subcaves | Entered Materials 779 | -8/Materials | Evolved 4 slots: Propulsion x3, Utility x1 853 | -8/Materials | Self-destructed Last Messages --------------- Jacked W-25 Informer... >>parse_system Reading system data... K-01 Serf collects debris. Jacked B-36 Bruiser... K-01 Serf collects debris. W-25 Informer sends out distress signal. K-01 Serf cleans the Fusion Modulator. Acquired Lgt. Nuclear Core. Acquired 101 matter. Acquired Hpw. Shotgun. K-01 Serf cleans the Fusion Modulator. Acquired Med. Treads. Dropped Wheel. Dropped Sub. Monowheel. Dropped Lgt. Ion Engine. Acquired Med. Treads. Med. Treads severed. Jacked L-31 Rogue... Critical hit (Burn: +37). Map ----- +----------------------------------------------------+ | ?????????????## """ Y"##???????? | | ?????????????## """ ""##???????? | | ?????????????## ####???????? | | ?????????????## ####???????? | | ?????????????## """ ##?????????? | | ?????????????## """ ##?????????? | | ????????## ??## """ ##?????????? | | ????????## ??## ############ | | ????????## #### ############ | | ????????## #### | | ????????## ^ ! | | ???####### ^ ![ | | ???#######+## ![ """ " | | ???# # [ """"" "" | | ????? """ # """"" ??? | | ??## """ # """""???? | | ??## """ # """????? | | ??## + ????? | | ??## # ?? | | ??## * !! ### #######+######+##?? | | ??## ! ###+#### ## ?? | | ??## ??## ##??????????????? | | ??###### ###### ##??????????????? | | ??############# ##??????????????? | | ????##!!=== ### ##??????????????? | | ????##!!==@=### !!##??????????????? | | ????## *l### !!##??????????????? | | ????######gg### ########## ???? | | ???####### g ##+###########+##???? | | ???## gT" ??? | | ???## " ??? | | ???####+## Y ##+#########+###????? | | ??? ###### * # ????? | | ???????? ###### !# ???????????? | | ?????????????## # ???????????? | | ?????????????## """ # ???????????? | | ?????????????## """ # ???????????? | | ?????????????## """ # ???????????? | | ?????????????######### ???????????? | | ?????????????######### ???????????? | | ??????????????????????????????????? | | ??????????????????????????????????? | | ??????????????????????????????????? | | | | | | | | | | | | | | | +----------------------------------------------------+ Best States ------------- Heat Dissipation 31 Energy Generation 14 Energy Capacity 140 Matter Stores 383 Matter Capacity 450 Sight Range 16 Terrain Scan Density 10 Armor Coverage 150 Evasion (%) 64 Recoil Reduction 3 Item Schematics ----------------- None Robot Schematics ------------------ None Fabricated ------------ Nothing Alien Tech Used ----------------- None Achievements -------------- None Challenges ------------ None Game ------ Seed MissileActiveExoskeleton Manual? 0 Play Time 00:25:03 Cumulative 19.1 hours Start 2024.05.23 @ 07:02:30 End 2024.05.23 @ 10:29:26 Sessions 1 Manual Loads 0 Difficulty Rogue Special Mode None Game No. 27 Rogue 27 Adventurer 0 Explorer 0 Win Type - Total 0 Types 0/0/0/0/0/0/0/0/0 Lore% 14 Gallery% 21 Achievement% 19 Wizard Run 0 Options --------- Layout 1 ASCII 0 Keyboard 0 Movement Mouse Keybinds 0 Fullscreen 2 Font 24/Smallcaps Map View 50x35 Zoom Use 0% Tactical HUD 0 Map Filters NONE Filters NONE Steam 1 RUN: 5243da06-972d-45e5-bcdb-ac6888c4436c